Cogmind - Beta 13 @@@ ROGUE MODE // 2024.04.08 @ 20:41:49 Player: chexo4 Result: Self-destructed Performance ------------- Evolutions (3) 1500 Regions Visited (8) 1600 Robots Destroyed (40) 200 Value Destroyed (1059) 1059 Prototype IDs (26) 520 Alien Tech Used (0) 0 Bonus (338) 338 TOTAL SCORE: 5217 Bonus ------- High Alert Combat Kills 13 Follower Combat Kills 25 Aligned with FarCom 300 Cogmind --------- Core Integrity 643/700 Matter 259/300 Energy 280/280 System Corruption 9% Temperature Cool (0) Movement Flying (112) Ox1 Location -7/Lower Caves Parts ------- > --- POWER (2) -------- Cooled Ion Engine > --- PROPULSION (4) --- Cesium-ion Thruster Cesium-ion Thruster > --- UTILITY (4) ------ Medium Storage Unit Advanced Weight Redist. System System Shield > --- WEAPON (3) ------- Lightning Gun Tearclaws > --- INVENTORY (10) --- Heavy Ion Engine Light Nuclear Core Improved Deuterium Engine Wheel Improved Signal Interpreter Advanced ECM Suite Proton Missile Launcher Remote Datajack Mining Laser Mining Laser Peak State ------------ > --- POWER ------------ Cooled Ion Engine Light Nuclear Core > --- PROPULSION ------- Flying Fortress v7 > --- UTILITY ---------- Medium Storage Unit Advanced Weight Redist. System Improved Medium Armor Plating System Shield > --- WEAPON ----------- Advanced Beam Rifle Heavy Assault Rifle Proton Missile Launcher > --- INVENTORY -------- Heavy Ion Engine Light Nuclear Core Improved Deuterium Engine Wheel Improved Signal Interpreter Assault Rifle Shotgun Remote Datajack Mining Laser Mining Laser [Rating: 61] Favorites ----------- Power Light Ion Engine Engine Light Ion Engine Power Core Light Nuclear Core Propulsion Compact Wheel Wheel Compact Wheel Flight Unit Flying Fortress v7 Utility Medium Storage Unit Device Seismic Detector Storage Medium Storage Unit Hackware System Shield Protection Improved Medium Armor Plating Weapon Light Assault Rifle Energy Gun Medium Laser Ballistic Gun Light Assault Rifle Launcher Proton Missile Launcher Special Weapon Mining Laser Slashing Weapon Tearclaws Build | -11 -10 -10 -10 -9 -8 -7 -7 -7 ------- Run | Yrd Mat Min Exi Min Mat Fac Low Low Slots Evolved 6 | . . . . . 4 2 . . Power 1 | . . . . . . 1 . . Propulsion 2 | . . . . . 2 . . . Utility 2 | . . . . . 1 1 . . Weapon 1 | . . . . . 1 . . . Parts Attached 43 | 8 3 . 2 4 14 6 3 3 Power 9 | 1 . . . 2 5 1 . . Engine 7 | 1 . . . 2 4 . . . Core 2 | . . . . . 1 1 . . Reactor . | . . . . . . . . . Propulsion 7 | 3 1 . . . 1 . . 2 Treads . | . . . . . . . . . Leg . | . . . . . . . . . Wheel 4 | 3 1 . . . . . . . Hover . | . . . . . . . . . Flight 3 | . . . . . 1 . . 2 Utility 9 | 2 . . 2 . 3 2 . . Device 3 | 1 . . 1 . . 1 . . Storage 2 | 1 . . 1 . . . . . Processor . | . . . . . . . . . Hackware 1 | . . . . . 1 . . . Protection 3 | . . . . . 2 1 . . Artifact . | . . . . . . . . . Weapon 18 | 2 2 . . 2 5 3 3 1 Energy Gun 5 | 1 1 . . 1 . 1 1 . Energy Cannon . | . . . . . . . . . Ballistic Gun 7 | 1 . . . . 4 1 1 . Ballistic Cannon . | . . . . . . . . . Launcher 2 | . . . . . 1 1 . . Special Weapon 3 | . 1 . . 1 . . 1 . Impact Weapon . | . . . . . . . . . Slashing Weapon 1 | . . . . . . . . 1 Piercing Weapon . | . . . . . . . . . Special Melee Weapon . | . . . . . . . . . Unidentified Prototypes 3 | . . . . . 2 1 . . Corrupted Parts 2 | . . . . . . . . 2 System Corruption 9 | . . . . . . . . 9 Parts Lost 11 | . . 1 . 3 2 1 2 2 Power 2 | . . . . 1 . . 1 . Propulsion 1 | . . . . . . . . 1 Utility 3 | . . 1 . 1 . . . 1 Weapon 5 | . . . . 1 2 1 1 . Highest Loss Streak 2 | . . 1 . 2 1 1 2 2 To Critical Strikes . | . . . . . . . . . Average Slot Usage (%) 81 | . 100 85 97 95 63 72 68 60 Engine 10 | . 14 14 14 13 4 7 7 7 Core 1 | . . . . . 4 6 . . Wheel 14 | . 28 28 28 28 . . . . Flight 3 | . . . . . 9 7 7 10 Device 7 | . 14 . 11 12 . 7 7 7 Storage 10 | . 14 14 14 14 9 7 7 7 Hackware 3 | . . . . . 5 7 7 7 Protection 3 | . . . . . 7 7 7 1 Energy Gun 9 | . 10 14 14 9 . 2 9 8 Ballistic Gun 12 | . 14 14 14 14 17 15 5 3 Launcher 1 | . . . . . 6 . 4 . Naked Turns . | . . . . . . . . . Heaviest Build 42 | 12 12 11 17 21 27 42 42 33 Greatest Support 59 | 26 32 32 32 32 50 59 59 59 Greatest Overweight (x) 1 | . . . . . . . . 1 Average Overweight (x) . | . . . . . . . . . Largest Inventory Capacity 10 | 8 8 8 10 10 10 10 10 10 Average Capacity 9 | 7 8 8 8 10 10 10 10 10 Most Carried 10 | 6 8 8 10 10 10 10 10 10 Average Carried 8 | 3 7 8 8 9 8 9 9 10 Final Capacity 10 | 8 8 8 10 10 10 10 10 10 Final Carried 10 | 6 8 8 10 9 10 10 10 10 Class Distribution -------------------- 68% | Mutant 18% | Tank 12% | Skirmisher Dominant Class ---------------- Mutant | -10/Materials Mutant | -10/Mines Mutant | -10/Exiles Mutant | -9/Mines Skirmisher | -8/Materials Skirmisher | -7/Factory Tank | -7/Lower Caves Mutant | -7/Lower Caves Resources | -11 -10 -10 -10 -9 -8 -7 -7 -7 ----------- Run | Yrd Mat Min Exi Min Mat Fac Low Low Matter Collected 1017 | 291 29 14 . 89 288 56 230 20 Remotely . | . . . . . . . . . Salvage Created 1355 | 145 82 101 . 167 514 84 242 20 Parts 84 | 12 9 9 . 8 31 3 8 4 Haulers Intercepted . | . . . . . . . . . Recyclers Shooed . | . . . . . . . . . Parts Field Recycled . | . . . . . . . . . Retrieved Matter . | . . . . . . . . . Parts Self-Destructed 11 | . . . . . . . 8 3 Prevented 6 | . . . . . . . 6 . Kills | -11 -10 -10 -10 -9 -8 -7 -7 -7 ------- Run | Yrd Mat Min Exi Min Mat Fac Low Low Combat Hostiles Destroyed 36 | . 4 4 . 4 16 2 5 1 Guns 35 | . 4 4 . 4 16 2 4 1 AOE 1 | . . . . . . . 1 . Classes Destroyed 6 | 2 2 . . . 1 . . 1 Tunneler 3 | 3 . . . . . . . . Recycler 1 | 1 . . . . . . . . Swarmer 18 | . 3 3 . . 6 1 5 . Grunt 13 | . 1 1 . 4 7 . . . Sentry 4 | . . . . . 3 1 . . Thief 1 | . . . . . . . . 1 Best Kill Streak 6 | 2 4 3 . 2 6 1 2 1 Combat Bots Only 6 | . 4 3 . 2 6 1 2 1 Max Kills in Single Turn 1 | 1 1 1 . 1 1 1 1 1 Gunslinging . | . . . . . . . . . Exploded 1 | . . . . . . . 1 . Melee . | . . . . . . . . . Uniques/NPCs Destroyed . | . . . . . . . . . Combat | -11 -10 -10 -10 -9 -8 -7 -7 -7 -------- Run | Yrd Mat Min Exi Min Mat Fac Low Low Hostile Shots Fired 270 | . 12 20 . 30 137 38 30 3 Missed 93 | . 3 5 . 8 49 17 11 . Damage Taken 2336 | . 78 158 . 248 1085 299 448 20 Core 281 | . 29 . . 47 148 28 29 . Absorbed by Shields . | . . . . . . . . . Core Remaining (%) 80 | 100 . . . 69 73 . . . Volleys Fired 148 | 11 17 9 . 39 46 6 12 8 Largest 3 | 2 2 2 . 2 2 3 3 3 Hottest 136 | 70 100 70 . 120 50 109 123 136 Shots Fired 270 | 22 26 18 . 54 91 14 27 18 Gun 240 | 22 18 18 . 44 90 14 16 18 Cannon . | . . . . . . . . . Launcher 10 | . . . . . 1 . 9 . Special 20 | . 8 . . 10 . . 2 . Kinetic 181 | 11 9 9 . 39 90 10 6 7 Thermal 71 | 11 17 9 . 15 . 4 12 3 Explosive 1 | . . . . . 1 . . . Electromagnetic 17 | . . . . . . . 9 8 Robot Hit Streak 21 | 7 7 9 . 21 14 9 8 9 Robot Miss Streak 6 | 1 2 2 . 1 6 2 6 3 Penetration Max . | . . . . . . . . . Secondary Targets 2 | . . 1 . . 1 . . . Max Gunslinging Chain 1 | . . 1 . . 1 . . . Shots Hit Robots 170 | 17 10 14 . 32 64 11 12 10 Core Hits 75 | 6 5 5 . 9 33 6 9 2 Critical Kills . | . . . . . . . . . Critical Parts Destroyed 4 | . . . . 2 2 . . . Critical Strikes 6 | . . . . 2 2 1 . 1 Burn 1 | . . . . . . 1 . . Destroy 4 | . . . . 2 2 . . . Corrupt 1 | . . . . . . . . 1 Melee Attacks 3 | . . . . . . . . 3 Impact . | . . . . . . . . . Slashing 3 | . . . . . . . . 3 Piercing . | . . . . . . . . . Sneak Attacks 1 | . . . . . . . . 1 Combat Hostiles . | . . . . . . . . . Follow-up Attacks . | . . . . . . . . . Damage Inflicted 2531 | 170 104 153 . 273 1097 197 404 133 Guns 2318 | 170 104 153 . 273 1097 197 191 133 Cannons . | . . . . . . . . . Explosions 213 | . . . . . . . 213 . Melee . | . . . . . . . . . Ramming . | . . . . . . . . . Kinetic 1685 | 82 30 52 . 209 1097 157 31 27 Thermal 547 | 88 74 101 . 64 . 40 160 20 Explosive . | . . . . . . . . . Electromagnetic 299 | . . . . . . . 213 86 Impact . | . . . . . . . . . Slashing . | . . . . . . . . . Piercing . | . . . . . . . . . Highest Corruption 9 | . . . . . . . . 9 Average Corruption 8 | . . . . . . . . 8 Corruption Purged . | . . . . . . . . . Corruption Blocked . | . . . . . . . . . Effects 3 | . . . . . . . . 3 Message Errors 2 | . . . . . . . . 2 Data Loss (major) 1 | . . . . . . . . 1 Overload Shots . | . . . . . . . . . Overflow Damage 15 | . . . . . . . 15 . Projectiles . | . . . . . . . . . Explosions 15 | . . . . . . . 15 . Melee . | . . . . . . . . . Knockbacks . | . . . . . . . . . Impact . | . . . . . . . . . Kinetic . | . . . . . . . . . Secondary . | . . . . . . . . . Self-Inflicted Damage 152 | . . . . . . . 152 . Shots 6 | . . . . . . . 6 . Rammed . | . . . . . . . . . Targets Rammed . | . . . . . . . . . Kicked . | . . . . . . . . . Crushed . | . . . . . . . . . Highest Temperature 212 | 70 142 83 . 212 139 189 186 153 Average Temperature 58 | 32 54 38 . 80 44 73 58 100 Received Heat Transfer 618 | . 12 54 . 132 396 24 . . Siege Activations . | . . . . . . . . . Robots Corrupted . | . . . . . . . . . Combat Hostiles . | . . . . . . . . . Parts Fried . | . . . . . . . . . Impact Corruptions . | . . . . . . . . . Robots Melted . | . . . . . . . . . Combat Hostiles . | . . . . . . . . . Parts Melted 3 | . 1 . . . . 1 1 . Heat Transferred 1443 | 259 222 296 . 185 . 148 296 37 Parts Sabotaged . | . . . . . . . . . Parts Stolen 1 | . . . . . . . . 1 Parts Stripped . | . . . . . . . . . Power Chain Reactions 2 | . . . . . . . 2 . Alert | -11 -10 -10 -10 -9 -8 -7 -7 -7 ------- Run | Yrd Mat Min Exi Min Mat Fac Low Low Peak Influence 439 | 20 117 105 . 51 439 321 . . Initial 158 | . 13 45 . . 19 158 . . Average 113 | 7 65 91 . 7 212 256 . . Maximum Alert Level 2 | . . . . . 2 1 . . Low Security (%) 74 | 100 100 100 . 100 41 14 . . Level 1 24 | . . . . . 55 85 . . Level 2 . | . . . . . 3 . . . Level 3 . | . . . . . . . . . Level 4 . | . . . . . . . . . Level 5 . | . . . . . . . . . High Security . | . . . . . . . . . Max Security . | . . . . . . . . . Squads Dispatched 9 | . 2 . . . 4 3 . . Investigation 5 | . 2 . . . 2 1 . . Extermination 1 | . . . . . . 1 . . Reinforcement 3 | . . . . . 2 1 . . Assault . | . . . . . . . . . Garrison . | . . . . . . . . . Intercept . | . . . . . . . . . Searches Triggered . | . . . . . . . . . Construction Impeded . | . . . . . . . . . Haulers Reinforced . | . . . . . . . . . Active Scanning Responses . | . . . . . . . . . Cargo Convoy Interrupts . | . . . . . . . . . Stealth | -11 -10 -10 -10 -9 -8 -7 -7 -7 --------- Run | Yrd Mat Min Exi Min Mat Fac Low Low Distress Signals 3 | . . . . . 2 1 . . Communications Jammed . | . . . . . . . . . Distress Signals . | . . . . . . . . . Times Spotted 60 | . 9 4 . 4 26 9 7 1 Peak Tracking Total 8 | . 7 2 . 2 8 5 3 1 Tactical Retreats 6 | . . . . . 4 . 2 . Traps | -11 -10 -10 -10 -9 -8 -7 -7 -7 ------- Run | Yrd Mat Min Exi Min Mat Fac Low Low Traps Triggered . | . . . . . . . . . Indirectly . | . . . . . . . . . Trap Hack Attempts . | . . . . . . . . . Triggered . | . . . . . . . . . Disarmed . | . . . . . . . . . Reprogrammed . | . . . . . . . . . Reused . | . . . . . . . . . Traps Extracted . | . . . . . . . . . Installed . | . . . . . . . . . Triggered 2 | . . . . . . . 2 . Machines | -11 -10 -10 -10 -9 -8 -7 -7 -7 ---------- Run | Yrd Mat Min Exi Min Mat Fac Low Low Machines Disabled . | . . . . . . . . . Max in Single Turn . | . . . . . . . . . Machines Repaired . | . . . . . . . . . Machines Dismantled . | . . . . . . . . . Machines Sabotaged . | . . . . . . . . . Overloaded Fab Kills . | . . . . . . . . . Hacking | -11 -10 -10 -10 -9 -8 -7 -7 -7 --------- Run | Yrd Mat Min Exi Min Mat Fac Low Low Machines Accessed 17 | . 2 . 5 . 6 3 1 . Terminals 11 | . 2 . . . 6 3 . . Fabricators . | . . . . . . . . . Repair Stations . | . . . . . . . . . Recycling Units . | . . . . . . . . . Scanalyzers . | . . . . . . . . . Garrison Access . | . . . . . . . . . Total Hacks 82 | . 6 . 50 . 14 11 1 . Successful 58 | . 2 . 50 . 2 3 1 . Failed 24 | . 4 . . . 12 8 . . Catastrophic 9 | . 3 . . . 5 1 . . Database Lockouts . | . . . . . . . . . Manual 15 | . 5 . 1 . 9 . . . Terminals 31 | . 6 . . . 14 11 . . Fabricators . | . . . . . . . . . Repair Stations . | . . . . . . . . . Recycling Units . | . . . . . . . . . Scanalyzers . | . . . . . . . . . Garrison Access . | . . . . . . . . . Terminal Hacks 58 | . 2 . 50 . 2 3 1 . Record 49 | . . . 49 . . . . . Open Door 1 | . . . . . . . 1 . Open DSF 1 | . . . . . . 1 . . Branch Access Points 2 | . 1 . . . 1 . . . Emergency Access Points 2 | . . . . . 1 1 . . Terminal Index 1 | . 1 . . . . . . . Locate Traps 1 | . . . . . . 1 . . Derelict Proto ID Bank 1 | . . . 1 . . . . . Fabricator Hacks . | . . . . . . . . . Repair Station Hacks . | . . . . . . . . . Recycling Unit Hacks . | . . . . . . . . . Scanalyzer . | . . . . . . . . . Garrison Access Hacks . | . . . . . . . . . Unauthorized Hacks . | . . . . . . . . . Terminals . | . . . . . . . . . Fabricators . | . . . . . . . . . Repair Stations . | . . . . . . . . . Recycling Units . | . . . . . . . . . Scanalyzers . | . . . . . . . . . Garrison Access . | . . . . . . . . . Data Cores Recovered . | . . . . . . . . . Used . | . . . . . . . . . Hacking Detections 11 | . 2 . . . 6 3 . . Full Trace Events 6 | . 2 . . . 3 1 . . Feedback Events . | . . . . . . . . . Feedback Blocked . | . . . . . . . . . Robot Schematics Acquired . | . . . . . . . . . Robots Built . | . . . . . . . . . Authchips . | . . . . . . . . . Time . | . . . . . . . . . Total Robot Build Rating . | . . . . . . . . . Part Schematics Acquired . | . . . . . . . . . Parts Built . | . . . . . . . . . Authchips . | . . . . . . . . . Time . | . . . . . . . . . Total Part Build Rating . | . . . . . . . . . Parts Repaired . | . . . . . . . . . Time . | . . . . . . . . . Parts Recycled . | . . . . . . . . . Recycled Matter . | . . . . . . . . . Retrieved Matter . | . . . . . . . . . Retrieved Components . | . . . . . . . . . Parts Scanalyzed . | . . . . . . . . . Part Schematics Acquired . | . . . . . . . . . Parts Damaged . | . . . . . . . . . Bothacking | -11 -10 -10 -10 -9 -8 -7 -7 -7 ------------ Run | Yrd Mat Min Exi Min Mat Fac Low Low Used RIF Installer . | . . . . . . . . . Robots Hacked . | . . . . . . . . . Non-combat . | . . . . . . . . . Combat . | . . . . . . . . . Robot Hacks Applied . | . . . . . . . . . Relay Couplers Released . | . . . . . . . . . Fabnet Peak Effective % . | . . . . . . . . . Robots Rewired . | . . . . . . . . . Allies Hacked . | . . . . . . . . . Hacks Repelled . | . . . . . . . . . Allies | -11 -10 -10 -10 -9 -8 -7 -7 -7 -------- Run | Yrd Mat Min Exi Min Mat Fac Low Low Total Allies 3 | . . 3 . . . . . . Largest Group 3 | . . 3 3 . . . . . Highest-Rated Group 69 | . . 69 69 . . . . . Highest-Rated Ally 31 | . . 31 31 . . . . . Total Orders . | . . . . . . . . . Ally Attacks 4 | . . 4 . . . . . . Total Damage 88 | . . 88 . . . . . . Kills 1 | . . 1 . . . . . . Allies Corrupted . | . . . . . . . . . Allies Melted . | . . . . . . . . . Intel | -11 -10 -10 -10 -9 -8 -7 -7 -7 ------- Run | Yrd Mat Min Exi Min Mat Fac Low Low Robot Analysis Total . | . . . . . . . . . Derelict Logs Recovered 6 | . . . . 3 . . 3 . Drone Launches . | . . . . . . . . . Drone Recoveries . | . . . . . . . . . Exploration | -11 -10 -10 -10 -9 -8 -7 -7 -7 ------------- Run | Yrd Mat Min Exi Min Mat Fac Low Low Turns Passed 3914 | 119 206 502 714 580 472 338 857 126 Spaces Moved 4353 | 81 154 419 704 442 446 546 1483 78 Core 15 | 8 . . . . . . . 7 Treads . | . . . . . . . . . Legs . | . . . . . . . . . Wheels 1792 | 73 154 419 704 442 . . . . Hover . | . . . . . . . . . Flight 2546 | . . . . . 446 546 1483 71 Fastest Speed 50 | 50 90 100 100 100 50 50 50 50 Average Speed 70 | 82 91 100 100 100 50 50 50 99 Slowest Speed 115 | 90 100 100 100 100 50 50 50 115 Overloaded Moves . | . . . . . . . . . Propulsion Burnouts . | . . . . . . . . . Robots Hopped 6 | . . . . . 4 1 1 . Cave-ins Triggered . | . . . . . . . . . Exploration Rate (%) 50 | 4 34 74 92 80 48 17 97 8 Regions Visited 8 Branch Regions 5 Pre-discovered Areas 2 | . . . 1 . . . 1 . Known Exits Taken 2 | . 1 . . 1 . . . . Unknown Exits Taken 6 | 1 . 1 1 . 1 1 1 . Scrap Searched 15 | . . 1 . 2 . . 12 . Spaces Dug 9 | . 8 . . 1 . . . . Terrain Destroyed 27 | . 8 . . 2 9 . 8 . Melee . | . . . . . . . . . Projectile 10 | . 8 . . 2 . . . . AOE 17 | . . . . . 9 . 8 . Terrain Rammed . | . . . . . . . . . Walls Destroyed . | . . . . . . . . . Machines Disabled . | . . . . . . . . . Actions | -11 -10 -10 -10 -9 -8 -7 -7 -7 --------- Run | Yrd Mat Min Exi Min Mat Fac Low Low Total 4871 | 112 178 485 716 513 602 595 1567 103 Wait 286 | . 3 58 4 28 81 34 68 10 Move 4334 | 80 153 418 703 441 438 543 1480 78 Hop 5 | . . . . . 3 1 1 . Pick Up 38 | 13 2 . 3 . 14 4 2 . Fast Attach 4 | . . . . . . 1 . 3 Attach 19 | 7 . . 1 1 6 3 1 . Detach . | . . . . . . . . . Swap 20 | 1 3 . 1 3 8 2 2 . Drop 14 | . . . 4 1 6 1 1 1 Fire 148 | 11 17 9 . 39 46 6 12 8 Melee 3 | . . . . . . . . 3 Ram . | . . . . . . . . . Kick . | . . . . . . . . . Crush . | . . . . . . . . . Escape Stasis . | . . . . . . . . . Rewire . | . . . . . . . . . Trap . | . . . . . . . . . Miscellaneous . | . . . . . . . . . Route ------- -11/Scrapyard -10/Materials (discovered 2 exits: *Min x2) -10/Mines (discovered 2 exits: [*Mat] / *Exi) -10/Exiles -9/Mines (discovered 2 exits: *Mat x2) -8/Materials -7/Factory -7/Lower Caves -7/Lower Caves History --------- Turn | Location | Event 20 | -11/Scrapyard | Discovered new exit (range 15) 120 | -11/Scrapyard | Entered Materials 292 | -10/Materials | Identified exit to Mines 301 | -10/Materials | Build established: Mutant 326 | -10/Materials | Entered Mines 438 | -10/Mines | Met a Derelict bent on vengeance 734 | -10/Mines | Discovered new exit (range 6) 756 | -10/Mines | Escorted by a lone wolf Derelict 811 | -10/Mines | Deemed a non-threat by the Exiles lab entrance 812 | -10/Mines | Discovered new exit (range 5) 828 | -10/Mines | Entered Exiles 828 | -10/Exiles | Accompanied by 3 allies 858 | -10/Exiles | Led the pair of lost Derelicts to a safe place 864 | -10/Exiles | Met 8R-AWN 885 | -10/Exiles | Met EX-HEX 949 | -10/Exiles | Met EX-DEC 968 | -10/Exiles | Learned location of Zion (-7) 1001 | -10/Exiles | Met EX-BIN 1015 | -10/Exiles | Aligned with FarCom system 1016 | -10/Exiles | Given EX-Vault access code 1050 | -10/Exiles | Opened EX-Vault 1060 | -10/Exiles | Found Flying Fortress v7 1103 | -10/Exiles | Warned to stay clear of 0b10 Research branches 1192 | -10/Exiles | Visited The Gauntlet 1534 | -10/Exiles | Discovered new exit (range 10) 1542 | -10/Exiles | Left Exiles lab with Flying Fortress v7 1542 | -10/Exiles | Entered Mines 1552 | -9/Mines | Identified exit to Materials 1675 | -9/Mines | Received a Rocket Launcher from a helpful Derelict 1790 | -9/Mines | Learned Materials terminal intel 1931 | -9/Mines | Excavation squad dispatched 1931 | -9/Mines | A large section of the Mines collapsed 2122 | -9/Mines | Entered Materials 2122 | -8/Materials | Evolved 4 slots: Propulsion x2, Utility x1, Weapon x1 2123 | -8/Materials | Loaded intel: 12 terminal locations 2460 | -8/Materials | Build established: Skirmisher 2589 | -8/Materials | Discovered new exit (range 9) 2594 | -8/Materials | Entered Factory 2594 | -7/Factory | Evolved 2 slots: Power x1, Utility x1 2926 | -7/Factory | Discovered new exit (range 9) 2932 | -7/Factory | Entered Lower Caves 2933 | -7/Lower Caves | Encountered a Warlord checkpoint 2945 | -7/Lower Caves | Learned Factory security intel 3017 | -7/Lower Caves | Learned 12 Factory zone layouts 3137 | -7/Lower Caves | Learned location of Extension (-5) 3475 | -7/Lower Caves | Discovered new exit (range 3) 3488 | -7/Lower Caves | Build established: Tank 3789 | -7/Lower Caves | Entered another Lower Caves area 3915 | -7/Lower Caves | Self-destructed Last Messages --------------- Integrated Corrupted Cesium-ion Thruster (+5). Acquired 20 matter. Dropped Assault Rifle. Acquired Corrupted Tearclaws. Integrated Corrupted Tearclaws (+4). Complication: FCS attempts to trigger Tearclaws. Complication: Tearclaws misfires. 9H-XRY(r) collects Assault Rifle. <0 MUG09IK#2 XNXXLG6ZL |, 9H-XRY(r) collects Adv. Beam Rifle. 9H-XRY(r) collects Corrupted Lgt. Deuterium Engine. Sneak attack on 9H-XRY(r). 9H-XRY(r) Com. Wheel ripped off. 39-3NS(r) collects Com. Wheel. FVD5#ZHFOGU5BV5MA4FM:N8FLH,FRATP1WSPS 57-EZ7(r) Com. Wheel ripped off. System corrupted: Substantial component data lost. [Achievement: Back For More] Map ----- +----------------------------------------------------+ | ?????????????????????????????????????????????????? | | ?????????????????????????????????????????????????? | | ?????????????????????????????????????????????????? | | ?????????????????????????????????????????????????? | | ?????????????????????????????????????????????????? | | ?????????????????????????????????????????????????? | | ?????????????????????????????????????????????????? | | ?????????????????????????????????????????????????? | | ????????????????????????????????????????####?????? | | ?????????????????????????????????????### ###???? | | ????????????????????????????????????## ????? | | ???????????????????????????????????## ?????? | | ?????????????????? ???????????### #??????? | | ????????????????? ??????????## #?????# | | ????????????????? ??????????# #??? | | ????????????????? ????????## ### | | ?????????????????? ???????## | | ??????????????????? ??????## #??? | | ???????????????????? ?????# #####???? | | ????????????????????? ?????# ##????? | | ?????????????????????# ?????# #????? | | ?????????????????????# ####?# ## #????? | | ?????????????????????# ### ### ##????? | | ????????????????????## "" #?# #?????? | | ????????????????????# " "" ### #??##?? | | ????????????????????# @ " " """ ### ## #?? | | ????????????????????## ## """ ### #?? | | ????????????????????????# "" "" ## = ##?? | | ???????????????????????# # """" " ##??? | | ??????????????????????# # "" ###???? | | ??????????????????????# ## #######?????? | | ??????????????????????# ?############???????????? | | ?????????????????????? ????????????????????????? | | ????????????????????? ????????????????????????? | | ????????????????????# ##????????????????????????? | | ????????????????????# ??????????????????????????? | | ???????????????????? ??????????????????????????? | | ??????????????????? ??????????????????????????? | | ???????????????????# ???????????????????????????? | | ???????????????????###???????????????????????????? | | ?????????????????????????????????????????????????? | | ?????????????????????????????????????????????????? | | ?????????????????????????????????????????????????? | | ?????????????????????????????????????????????????? | | ?????????????????????????????????????????????????? | | ?????????????????????????????????????????????????? | | ?????????????????????????????????????????????????? | | ?????????????????????????????????????????????????? | | ?????????????????????????????????????????????????? | | ?????????????????????????????????????????????????? | +----------------------------------------------------+ Best States ------------- Heat Dissipation 34 Energy Generation 23 Energy Capacity 340 Matter Stores 300 Matter Capacity 300 Sight Range 16 Terrain Scan Density 10 Additional Mass Support 9 Armor Coverage 225 Evasion (%) 60 Defensive Hacking 10 Item Schematics ----------------- None Robot Schematics ------------------ None Fabricated ------------ Nothing Alien Tech Used ----------------- None Achievements -------------- Back For More Challenges ------------ None Game ------ Seed TransportArmoredAirjet Manual? 0 Play Time 00:35:44 Cumulative 17.4 hours Start 2024.04.08 @ 20:07:08 End 2024.04.08 @ 20:41:49 Sessions 1 Manual Loads 0 Difficulty Rogue Special Mode None Game No. 50 Rogue 50 Adventurer 0 Explorer 0 Win Type - Total 0 Types 0/0/0/0/0/0/0/0/0 Lore% 17 Gallery% 27 Achievement% 22 Wizard Run 0 Options --------- Layout 1 ASCII 0 Keyboard 0 Movement Arrows Keybinds 0 Fullscreen 2 Font 24/Smallcaps Map View 50x35 Zoom Use 0% Tactical HUD 0 Map Filters NONE Filters NONE Steam 1 RUN: 6130132b-efd8-437c-bdad-9d71fe99549d